[Event "Istanbul Open 2019"]
[Site "Istanbul"]
[Date "2019.08.31"]
[Round "7.15"]
[White "Ahmadov, Orkhan"]
[Black "Yalcinkaya, Efe"]
[Result "1/2-1/2"]
[ECO "D87"]
[WhiteElo "1615"]
[BlackElo "1542"]
[Annotator "NA"]
[PlyCount "78"]
[EventDate "2019.08.26"]
[EventType "swiss"]
[EventCountry "TUR"]
[SourceTitle "playchess.com"]
[Source "ChessBase"]
[SourceQuality "1"]
[TimeControl "5400+30"]

1. d4 {[%emt 0:00:30]} Nf6 {[%emt 0:00:30]} 2. c4 {[%emt 0:00:00]} g6 {[%emt 0:00:30]} 3. Nc3 {[%emt 0:00:00]} d5 {[%emt 0:00:00]} 4. cxd5 {[%emt 0:00:30]} Nxd5 {[%emt 0:00:00]} 5. e4 {[%emt 0:00:00]} Nxc3 {[%emt 0:00:00]} 6. bxc3 {[%emt 0:00:00]} Bg7 {[%emt 0:00:00]} 7. Bc4 {[%emt 0:00:00]} c5 {[%emt 0:00:30]} 8. Ne2 {[%emt 0:00:00]} O-O {[%emt 0:00:30]} 9. Be3 {[%emt 0:00:00]} Nc6 {[%emt 0:00:30]} 10. h4 {[%emt 0:00:00]} h5 {[%emt 0:03:30]} 11. f3 {[%emt 0:03:30]} Qa5 {[%emt 0:03:30]} 12. Kf2 {[%emt 0:08:30]} Rd8 {[%emt 0:07:30]} 13. Qb3 {[%emt 0:18:30]} cxd4 {[%emt 0:09:30]} 14. Bxf7+ {[%emt 0:03:30]} Kh7 {[%emt 0:01:30]} 15. cxd4 {[%emt 0:02:30]} Nxd4 {[%emt 0:02:30]} 16. Nxd4 {[%emt 0:05:30]} Rxd4 {[%emt 0:01:30]} 17. Rad1 {[%emt 0:21:30]} Rb4 {[%emt 0:08:30]} 18. Qd5 {[%emt 0:04:30]} Rb2+ {[%emt 0:02:30]} 19. Rd2 {[%emt 0:08:30]} Rxd2+ {[%emt 0:04:30]} 20. Bxd2 {[%emt 0:01:30]} Qb6+ {[%emt 0:01:30]} 21. Be3 {[%emt 0:02:07]} Qb2+ {[%emt 0:00:30]} 22. Qd2 {[%emt 0:07:00]} Qxd2+ {[%emt 0:01:30]} 23. Bxd2 {[%emt 0:00:02]} Bd7 {[%emt 0:02:30]} 24. Rc1 {[%emt 0:06:43]} Bc6 {[%emt 0:01:30]} 25. Bg5 {[%emt 0:01:24]} Rd8 {[%emt 0:02:30]} 26. Rc2 {[%emt 0:01:25]} Rd3 {[%emt 0:11:30]} 27. Rd2 {[%emt 0:02:19]} Rxd2+ {[%emt 0:01:30]} 28. Bxd2 {[%emt 0:00:02]} Bf6 {[%emt 0:00:30]} 29. Bg5 {[%emt 0:01:29]} Kg7 {[%emt 0:00:30]} 30. Bb3 {[%emt 0:00:32]} Bd4+ {[%emt 0:01:30]} 31. Be3 {[%emt 0:02:15]} Bxe3+ {[%emt 0:01:30]} 32. Kxe3 {[%emt 0:00:30]} e5 {[%emt 0:00:30]} 33. g3 {[%emt 0:00:00]} Kf6 {[%emt 0:00:30]} 34. f4 {[%emt 0:00:00]} b5 {[%emt 0:01:30]} 35. a3 {[%emt 0:00:28]} a5 {[%emt 0:01:30]} 36. Bc2 {[%emt 0:01:28]} Bb7 {[%emt 0:02:30]} 37. Bb3 {[%emt 0:01:02]} Bc6 {[%emt 0:00:00]} 38. Bc2 {[%emt 0:01:09]} Bb7 {[%emt 0:00:00]} 39. Bb3 {[%emt 0:00:30]} Bc6 {[%emt 0:00:00]} 1/2-1/2

[Event "Istanbul Open 2019"]
[Site "Istanbul"]
[Date "2019.08.31"]
[Round "7.16"]
[White "Ulas, Berkay"]
[Black "Pektas, Gokdeniz"]
[Result "0-1"]
[ECO "B30"]
[WhiteElo "1628"]
[BlackElo "1652"]
[Annotator "NA"]
[PlyCount "122"]
[EventDate "2019.08.26"]
[EventType "swiss"]
[EventCountry "TUR"]
[SourceTitle "playchess.com"]
[Source "ChessBase"]
[SourceQuality "1"]
[TimeControl "5400+30"]

1. e4 {[%emt 0:01:30]} c5 {[%emt 0:03:30]} 2. Nf3 {[%emt 0:00:30]} Nc6 {[%emt 0:00:30]} 3. Bb5 {[%emt 0:01:30]} Qc7 {[%emt 0:03:30]} 4. O-O {[%emt 0:00:30]} g6 {[%emt 0:01:30]} 5. Re1 {[%emt 0:01:30]} Bg7 {[%emt 0:00:30]} 6. c3 {[%emt 0:00:30]} a6 {[%emt 0:01:30]} 7. Bxc6 {[%emt 0:00:30]} dxc6 {[%emt 0:00:30]} 8. h3 {[%emt 0:00:30]} c4 {[%emt 0:00:30]} 9. d3 {[%emt 0:02:30]} cxd3 {[%emt 0:00:30]} 10. Qxd3 {[%emt 0:00:30]} Nf6 {[%emt 0:00:30]} 11. e5 {[%emt 0:04:30]} Bf5 {[%emt 0:01:30]} 12. Qe2 {[%emt 0:01:30]} Nd5 {[%emt 0:00:30]} 13. Nd4 {[%emt 0:00:30]} Qc8 {[%emt 0:02:30]} 14. e6 {[%emt 0:07:30]} Bxe6 {[%emt 0:01:30]} 15. Nxe6 {[%emt 0:00:30]} Qxe6 {[%emt 0:00:00]} 16. Qxe6 {[%emt 0:00:30]} fxe6 {[%emt 0:00:00]} 17. Rxe6 {[%emt 0:00:30]} Kf7 {[%emt 0:00:00]} 18. Re1 {[%emt 0:02:30]} b5 {[%emt 0:01:00]} 19. Na3 {[%emt 0:14:30]} Nb6 {[%emt 0:00:30]} 20. Bg5 {[%emt 0:02:30]} Rhe8 {[%emt 0:00:30]} 21. Rac1 {[%emt 0:08:30]} Na4 {[%emt 0:00:30]} 22. Rc2 {[%emt 0:02:30]} Rad8 {[%emt 0:00:30]} 23. Nb1 {[%emt 0:00:30]} h6 {[%emt 0:00:00]} 24. Be3 {[%emt 0:02:30]} Rd3 {[%emt 0:00:00]} 25. b3 {[%emt 0:04:30]} Nxc3 {[%emt 0:00:30]} 26. Nxc3 {[%emt 0:00:30]} Bxc3 {[%emt 0:00:30]} 27. Rec1 {[%emt 0:00:00]} b4 {[%emt 0:00:00]} 28. Bxh6 {[%emt 0:00:00]} Red8 {[%emt 0:00:00]} 29. Re2 {[%emt 0:01:30]} R8d5 {[%emt 0:03:30]} 30. Rcc2 {[%emt 0:03:30]} R3d4 {[%emt 0:03:30]} 31. Bc1 {[%emt 0:04:30]} c5 {[%emt 0:16:30]} 32. Bb2 {[%emt 0:06:30]} Rd1+ {[%emt 0:01:30]} 33. Kh2 {[%emt 0:00:30]} R5d3 {[%emt 0:00:00]} 34. Re4 {[%emt 0:04:30]} R1d2 {[%emt 0:09:00]} 35. Re2 {[%emt 0:00:30]} Rxe2 {[%emt 0:02:30]} 36. Rxe2 {[%emt 0:00:30]} Bxb2 {[%emt 0:00:30]} 37. Rxb2 {[%emt 0:00:30]} a5 {[%emt 0:00:00]} 38. g3 {[%emt 0:02:32]} Ke6 {[%emt 0:04:00]} 39. Re2+ {[%emt 0:01:06]} Kd6 {[%emt 0:00:30]} 40. Kg2 {[%emt 0:00:30]} e5 {[%emt 0:00:00]} 41. Kf1 {[%emt 0:00:26]} a4 {[%emt 0:04:00]} 42. bxa4 {[%emt 0:08:17]} c4 {[%emt 0:00:30]} 43. Rc2 {[%emt 0:00:36]} c3 {[%emt 0:00:30]} 44. Ke2 {[%emt 0:01:01]} e4 {[%emt 0:00:30]} 45. h4 {[%emt 0:01:35]} Kc5 {[%emt 0:00:00]} 46. Ke1 {[%emt 0:01:53]} Kc4 {[%emt 0:00:00]} 47. Re2 {[%emt 0:01:13]} Rd4 {[%emt 0:00:30]} 48. a5 {[%emt 0:00:47]} b3 {[%emt 0:00:30]} 49. axb3+ {[%emt 0:03:39]} Kxb3 {[%emt 0:00:00]} 50. a6 {[%emt 0:01:47]} c2 {[%emt 0:00:00]} 51. Rxc2 {[%emt 0:00:00]} Kxc2 {[%emt 0:00:30]} 52. Ke2 {[%emt 0:00:00]} Ra4 {[%emt 0:00:30]} 53. Ke3 {[%emt 0:00:28]} Kd1 {[%emt 0:00:30]} 54. a7 {[%emt 0:00:11]} Ke1 {[%emt 0:00:00]} 55. f4 {[%emt 0:00:01]} exf3 {[%emt 0:00:00]} 56. Kxf3 {[%emt 0:00:30]} Rxa7 {[%emt 0:00:30]} 57. Kf4 {[%emt 0:00:30]} Ra5 {[%emt 0:00:00]} 58. g4 {[%emt 0:00:00]} Kf2 {[%emt 0:00:00]} 59. g5 {[%emt 0:00:02]} Kg2 {[%emt 0:00:30]} 60. h5 {[%emt 0:00:56]} Ra4+ {[%emt 0:00:30]} 61. Ke5 {[%emt 0:00:30]} gxh5 {[%emt 0:00:00]} 0-1

[Event "Istanbul Open 2019"]
[Site "Istanbul"]
[Date "2019.08.31"]
[Round "7.17"]
[White "Hakkaki Fard, Pedram"]
[Black "Aslan, Nevzat"]
[Result "1/2-1/2"]
[ECO "D00"]
[WhiteElo "1720"]
[BlackElo "1680"]
[Annotator "NA"]
[PlyCount "123"]
[EventDate "2019.08.26"]
[EventType "swiss"]
[EventCountry "TUR"]
[SourceTitle "playchess.com"]
[Source "ChessBase"]
[SourceQuality "1"]
[TimeControl "5400+30"]

1. d4 {[%emt 0:03:30]} Nf6 {[%emt 0:00:30]} 2. Bf4 {[%emt 0:01:30]} d5 {[%emt 0:04:30]} 3. e3 {[%emt 0:00:30]} e6 {[%emt 0:01:30]} 4. Nd2 {[%emt 0:00:30]} c5 {[%emt 0:00:00]} 5. c3 {[%emt 0:00:30]} Bd6 {[%emt 0:04:00]} 6. Bg3 {[%emt 0:00:30]} O-O {[%emt 0:00:00]} 7. Bd3 {[%emt 0:00:00]} b6 {[%emt 0:01:00]} 8. Ngf3 {[%emt 0:14:00]} Ba6 {[%emt 0:05:30]} 9. Bxa6 {[%emt 0:05:30]} Nxa6 {[%emt 0:00:00]} 10. Qe2 {[%emt 0:00:30]} Nb8 {[%emt 0:08:00]} 11. e4 {[%emt 0:05:30]} Bxg3 {[%emt 0:27:30]} 12. hxg3 {[%emt 0:01:30]} dxe4 {[%emt 0:00:30]} 13. Nxe4 {[%emt 0:00:30]} Nbd7 {[%emt 0:00:30]} 14. O-O-O {[%emt 0:18:30]} Nxe4 {[%emt 0:00:30]} 15. Qxe4 {[%emt 0:00:30]} Nf6 {[%emt 0:00:30]} 16. Qh4 {[%emt 0:00:30]} Qd5 {[%emt 0:00:30]} 17. g4 {[%emt 0:13:30]} Qe4 {[%emt 0:02:30]} 18. Ne5 {[%emt 0:00:30]} cxd4 {[%emt 0:01:30]} 19. Rde1 {[%emt 0:13:55]} Qf4+ {[%emt 0:00:30]} 20. Kb1 {[%emt 0:00:00]} Rfd8 {[%emt 0:07:30]} 21. g3 {[%emt 0:04:07]} Qh6 {[%emt 0:04:30]} 22. Qxh6 {[%emt 0:00:30]} gxh6 {[%emt 0:00:00]} 23. Rxh6 {[%emt 0:00:27]} Kg7 {[%emt 0:00:00]} 24. Reh1 {[%emt 0:00:49]} Rh8 {[%emt 0:02:30]} 25. cxd4 {[%emt 0:04:56]} Rad8 {[%emt 0:00:30]} 26. g5 {[%emt 0:00:44]} Ne4 {[%emt 0:01:30]} 27. R6h4 {[%emt 0:00:59]} Nxg5 {[%emt 0:12:10]} 28. Rf4 {[%emt 0:03:51]} f6 {[%emt 0:01:30]} 29. Ng4 {[%emt 0:00:29]} Rhf8 {[%emt 0:01:21]} 30. Rc1 {[%emt 0:00:46]} Rd7 {[%emt 0:00:48]} 31. Rc6 {[%emt 0:02:30]} Nh3 {[%emt 0:04:19]} 32. Re4 {[%emt 0:01:35]} Ng5 {[%emt 0:01:01]} 33. Rf4 {[%emt 0:01:19]} h5 {[%emt 0:02:34]} 34. Ne3 {[%emt 0:00:42]} Rfd8 {[%emt 0:00:51]} 35. d5 {[%emt 0:00:44]} Rd6 {[%emt 0:02:55]} 36. Rc7+ {[%emt 0:00:53]} R8d7 {[%emt 0:01:39]} 37. Rfc4 {[%emt 0:00:25]} Kg6 {[%emt 0:00:31]} 38. dxe6 {[%emt 0:00:37]} Nxe6 {[%emt 0:00:17]} 39. Rc8 {[%emt 0:00:20]} Rd8 {[%emt 0:01:27]} 40. R8c6 {[%emt 0:00:36]} R8d7 {[%emt 0:00:59]} 41. Rc8 {[%emt 0:00:36]} Rd8 {[%emt 0:00:44]} 42. Rxd8 {[%emt 0:00:30]} Rxd8 {[%emt 0:00:00]} 43. Re4 {[%emt 0:00:03]} Rd6 {[%emt 0:00:42]} 44. f4 {[%emt 0:00:33]} Ng7 {[%emt 0:01:11]} 45. Re7 {[%emt 0:00:45]} Nf5 {[%emt 0:00:47]} 46. Nxf5 {[%emt 0:00:39]} Kxf5 {[%emt 0:00:06]} 47. Rxa7 {[%emt 0:00:08]} h4 {[%emt 0:00:50]} 48. gxh4 {[%emt 0:00:53]} Kxf4 {[%emt 0:00:02]} 49. Rg7 {[%emt 0:00:38]} Rd5 {[%emt 0:00:35]} 50. Rg6 {[%emt 0:00:23]} Kf5 {[%emt 0:00:21]} 51. h5 {[%emt 0:00:32]} Rd1+ {[%emt 0:00:30]} 52. Kc2 {[%emt 0:00:30]} Rh1 {[%emt 0:00:01]} 53. Rh6 {[%emt 0:00:00]} Kg5 {[%emt 0:01:02]} 54. Rg6+ {[%emt 0:00:29]} Kf5 {[%emt 0:00:00]} 55. Rh6 {[%emt 0:00:29]} Kg5 {[%emt 0:00:00]} 56. Rh8 {[%emt 0:01:00]} Rh2+ {[%emt 0:00:30]} 57. Kc3 {[%emt 0:00:39]} Rh3+ {[%emt 0:00:11]} 58. Kd4 {[%emt 0:00:17]} Rh2 {[%emt 0:00:48]} 59. h6 {[%emt 0:00:26]} Rxb2 {[%emt 0:00:00]} 60. h7 {[%emt 0:01:04]} Kg6 {[%emt 0:00:00]} 61. Rf8 {[%emt 0:00:23]} Kxh7 {[%emt 0:00:29]} 62. Rxf6 {[%emt 0:00:00]} 1/2-1/2

[Event "Istanbul Open 2019"]
[Site "Istanbul"]
[Date "2019.08.31"]
[Round "7.18"]
[White "Can, Ilhan"]
[Black "Uyanik, Toygun"]
[Result "1-0"]
[ECO "C07"]
[WhiteElo "1683"]
[BlackElo "1566"]
[Annotator "NA"]
[PlyCount "99"]
[EventDate "2019.08.26"]
[EventType "swiss"]
[EventCountry "TUR"]
[SourceTitle "playchess.com"]
[Source "ChessBase"]
[SourceQuality "1"]
[TimeControl "5400+30"]

1. e4 {[%emt 0:00:30]} e6 {[%emt 0:00:30]} 2. d4 {[%emt 0:00:30]} d5 {[%emt 0:00:00]} 3. Nd2 {[%emt 0:00:00]} c5 {[%emt 0:02:00]} 4. c3 {[%emt 0:00:00]} Nc6 {[%emt 0:04:30]} 5. Ngf3 {[%emt 0:00:30]} cxd4 {[%emt 0:09:30]} 6. Nxd4 {[%emt 0:02:30]} Bd7 {[%emt 0:01:30]} 7. exd5 {[%emt 0:02:30]} exd5 {[%emt 0:00:30]} 8. N2f3 {[%emt 0:00:30]} Nf6 {[%emt 0:04:30]} 9. Bd3 {[%emt 0:00:30]} Be7 {[%emt 0:00:30]} 10. O-O {[%emt 0:01:30]} O-O {[%emt 0:00:00]} 11. Re1 {[%emt 0:00:30]} Bg4 {[%emt 0:03:00]} 12. Qa4 {[%emt 0:01:30]} Nxd4 {[%emt 0:10:30]} 13. Nxd4 {[%emt 0:00:30]} Bd6 {[%emt 0:01:30]} 14. Bg5 {[%emt 0:02:30]} Bd7 {[%emt 0:02:30]} 15. Qc2 {[%emt 0:00:30]} h6 {[%emt 0:02:30]} 16. Bxf6 {[%emt 0:10:30]} Qxf6 {[%emt 0:00:30]} 17. Bf5 {[%emt 0:00:30]} Be8 {[%emt 0:09:30]} 18. Rad1 {[%emt 0:01:30]} g6 {[%emt 0:02:30]} 19. Bh3 {[%emt 0:00:30]} Bc6 {[%emt 0:04:30]} 20. b4 {[%emt 0:04:30]} Be5 {[%emt 0:07:30]} 21. a4 {[%emt 0:05:30]} Rad8 {[%emt 0:10:30]} 22. b5 {[%emt 0:03:30]} Bd7 {[%emt 0:01:30]} 23. Bxd7 {[%emt 0:00:00]} Rxd7 {[%emt 0:00:30]} 24. Re3 {[%emt 0:00:00]} Rc8 {[%emt 0:01:30]} 25. Qe2 {[%emt 0:01:30]} Re7 {[%emt 0:02:13]} 26. Re1 {[%emt 0:02:30]} Rce8 {[%emt 0:00:30]} 27. Nf3 {[%emt 0:02:30]} Bd6 {[%emt 0:00:58]} 28. Qd3 {[%emt 0:00:30]} Rxe3 {[%emt 0:02:09]} 29. Rxe3 {[%emt 0:00:30]} Rxe3 {[%emt 0:00:42]} 30. Qxe3 {[%emt 0:00:30]} Qf5 {[%emt 0:01:32]} 31. g3 {[%emt 0:00:30]} b6 {[%emt 0:01:49]} 32. Kg2 {[%emt 0:00:30]} Kg7 {[%emt 0:05:05]} 33. Qd4+ {[%emt 0:02:30]} f6 {[%emt 0:01:45]} 34. c4 {[%emt 0:00:30]} Bc5 {[%emt 0:01:19]} 35. Qxd5 {[%emt 0:00:30]} Qc2 {[%emt 0:00:27]} 36. Qd7+ {[%emt 0:01:30]} Kf8 {[%emt 0:02:53]} 37. Qc8+ {[%emt 0:01:30]} Ke7 {[%emt 0:01:11]} 38. Qb7+ {[%emt 0:00:30]} Kf8 {[%emt 0:00:31]} 39. Qb8+ {[%emt 0:00:00]} Ke7 {[%emt 0:00:36]} 40. Qc7+ {[%emt 0:00:00]} Kf8 {[%emt 0:00:32]} 41. Qd8+ {[%emt 0:00:30]} Kf7 {[%emt 0:00:20]} 42. Qd7+ {[%emt 0:00:30]} Kf8 {[%emt 0:00:08]} 43. Qd2 {[%emt 0:01:30]} Qxc4 {[%emt 0:01:42]} 44. Qxh6+ {[%emt 0:00:30]} Kf7 {[%emt 0:00:30]} 45. Qh7+ {[%emt 0:00:00]} Kf8 {[%emt 0:00:00]} 46. Qxg6 {[%emt 0:00:00]} Qe2 {[%emt 0:00:48]} 47. Qxf6+ {[%emt 0:00:30]} Kg8 {[%emt 0:00:46]} 48. Ng5 {[%emt 0:00:30]} Qh5 {[%emt 0:01:55]} 49. h4 {[%emt 0:00:30]} Qe8 {[%emt 0:00:35]} 50. Qe6+ {[%emt 0:00:30]} 1-0

[Event "Istanbul Open 2019"]
[Site "Istanbul"]
[Date "2019.08.31"]
[Round "7.19"]
[White "Goker, Abdulkadir"]
[Black "Rodriguez Fuentes, Kenan Rafael"]
[Result "1-0"]
[ECO "D74"]
[WhiteElo "1670"]
[BlackElo "1508"]
[Annotator "NA"]
[PlyCount "115"]
[EventDate "2019.08.26"]
[EventType "swiss"]
[EventCountry "TUR"]
[SourceTitle "playchess.com"]
[Source "ChessBase"]
[SourceQuality "1"]
[TimeControl "5400+30"]

1. d4 {[%emt 0:00:30]} Nf6 {[%emt 0:00:30]} 2. c4 {[%emt 0:00:30]} g6 {[%emt 0:00:30]} 3. Nf3 {[%emt 0:00:30]} d5 {[%emt 0:00:30]} 4. g3 {[%emt 0:00:30]} Bg7 {[%emt 0:00:30]} 5. Bg2 {[%emt 0:00:30]} O-O {[%emt 0:00:30]} 6. O-O {[%emt 0:00:30]} c6 {[%emt 0:00:30]} 7. cxd5 {[%emt 0:00:30]} Nxd5 {[%emt 0:00:30]} 8. Nc3 {[%emt 0:00:30]} Nb6 {[%emt 0:00:30]} 9. Bf4 {[%emt 0:00:30]} Bg4 {[%emt 0:01:30]} 10. Ne5 {[%emt 0:08:30]} Be6 {[%emt 0:00:30]} 11. Rc1 {[%emt 0:11:30]} N8d7 {[%emt 0:00:30]} 12. b3 {[%emt 0:04:30]} Nxe5 {[%emt 0:03:30]} 13. Bxe5 {[%emt 0:00:30]} Bxe5 {[%emt 0:01:30]} 14. dxe5 {[%emt 0:03:30]} Qxd1 {[%emt 0:01:30]} 15. Rfxd1 {[%emt 0:00:30]} Rfd8 {[%emt 0:00:30]} 16. Ne4 {[%emt 0:00:30]} Nd7 {[%emt 0:04:30]} 17. f4 {[%emt 0:04:30]} Bd5 {[%emt 0:00:00]} 18. Kf2 {[%emt 0:20:30]} a5 {[%emt 0:02:00]} 19. Ng5 {[%emt 0:08:30]} Nb6 {[%emt 0:14:30]} 20. e4 {[%emt 0:01:30]} Be6 {[%emt 0:07:30]} 21. Nxe6 {[%emt 0:00:30]} fxe6 {[%emt 0:00:00]} 22. Ke3 {[%emt 0:00:30]} a4 {[%emt 0:01:00]} 23. Rxd8+ {[%emt 0:11:30]} Rxd8 {[%emt 0:00:30]} 24. bxa4 {[%emt 0:00:00]} Nxa4 {[%emt 0:00:30]} 25. Rc4 {[%emt 0:00:00]} Ra8 {[%emt 0:03:30]} 26. Rc2 {[%emt 0:11:36]} Nb6 {[%emt 0:05:30]} 27. Bf1 {[%emt 0:00:04]} Ra3+ {[%emt 0:00:30]} 28. Kd2 {[%emt 0:00:06]} Kf7 {[%emt 0:03:30]} 29. Bd3 {[%emt 0:02:20]} Na4 {[%emt 0:00:30]} 30. g4 {[%emt 0:04:37]} b5 {[%emt 0:07:30]} 31. Rxc6 {[%emt 0:01:50]} Rxa2+ {[%emt 0:00:30]} 32. Rc2 {[%emt 0:00:35]} Rxc2+ {[%emt 0:00:30]} 33. Bxc2 {[%emt 0:00:19]} Nc5 {[%emt 0:06:30]} 34. Kc3 {[%emt 0:00:09]} Na6 {[%emt 0:00:30]} 35. Kd4 {[%emt 0:01:19]} Ke8 {[%emt 0:07:30]} 36. Bd3 {[%emt 0:01:19]} Nb4 {[%emt 0:04:30]} 37. Bxb5+ {[%emt 0:00:30]} Kf8 {[%emt 0:00:30]} 38. Kc3 {[%emt 0:00:59]} Na2+ {[%emt 0:00:30]} 39. Kb2 {[%emt 0:00:23]} Nb4 {[%emt 0:00:30]} 40. Kb3 {[%emt 0:00:30]} Nd5 {[%emt 0:00:30]} 41. exd5 {[%emt 0:00:30]} exd5 {[%emt 0:00:00]} 42. Kc3 {[%emt 0:00:00]} e6 {[%emt 0:00:00]} 43. Kd4 {[%emt 0:00:00]} Kf7 {[%emt 0:00:00]} 44. Bd3 {[%emt 0:00:00]} Ke7 {[%emt 0:00:00]} 45. f5 {[%emt 0:00:21]} gxf5 {[%emt 0:00:30]} 46. gxf5 {[%emt 0:00:30]} exf5 {[%emt 0:00:00]} 47. Bxf5 {[%emt 0:00:00]} h5 {[%emt 0:00:00]} 48. h4 {[%emt 0:00:00]} Kd8 {[%emt 0:00:00]} 49. Kxd5 {[%emt 0:00:11]} Ke7 {[%emt 0:00:00]} 50. Bg6 {[%emt 0:00:00]} Kd7 {[%emt 0:00:00]} 51. Bxh5 {[%emt 0:00:23]} Ke7 {[%emt 0:00:00]} 52. e6 {[%emt 0:00:00]} Kd8 {[%emt 0:00:00]} 53. Kd6 {[%emt 0:00:00]} Kc8 {[%emt 0:00:00]} 54. e7 {[%emt 0:00:22]} Kb7 {[%emt 0:00:30]} 55. e8=Q {[%emt 0:00:30]} Ka7 {[%emt 0:00:00]} 56. Qb5 {[%emt 0:00:00]} Ka8 {[%emt 0:00:00]} 57. Bf3+ {[%emt 0:00:00]} Ka7 {[%emt 0:00:30]} 58. Qb7# {[%emt 0:00:00]} 1-0

[Event "Istanbul Open 2019"]
[Site "Istanbul"]
[Date "2019.08.31"]
[Round "8.3"]
[White "Yarashov, Azat"]
[Black "Darban, Morteza"]
[Result "1/2-1/2"]
[ECO "B11"]
[WhiteElo "2156"]
[BlackElo "2280"]
[Annotator "NA"]
[PlyCount "37"]
[EventDate "2019.08.26"]
[EventType "swiss"]
[EventCountry "TUR"]
[SourceTitle "playchess.com"]
[Source "ChessBase"]
[SourceQuality "1"]
[TimeControl "5400+30"]

1. e4 {[%emt 0:03:30]} c6 {[%emt 0:02:30]} 2. Nc3 {[%emt 0:00:30]} d5 {[%emt 0:00:30]} 3. Nf3 {[%emt 0:00:30]} Nf6 {[%emt 0:00:30]} 4. e5 {[%emt 0:00:30]} Ne4 {[%emt 0:02:30]} 5. d3 {[%emt 0:07:30]} Nxc3 {[%emt 0:00:30]} 6. bxc3 {[%emt 0:00:30]} c5 {[%emt 0:11:30]} 7. h3 {[%emt 0:04:30]} Nc6 {[%emt 0:00:30]} 8. Qe2 {[%emt 0:00:00]} e6 {[%emt 0:07:30]} 9. g3 {[%emt 0:00:00]} Qa5 {[%emt 0:00:30]} 10. Bd2 {[%emt 0:03:30]} Qa4 {[%emt 0:00:30]} 11. Qd1 {[%emt 0:04:30]} h6 {[%emt 0:08:30]} 12. Bg2 {[%emt 0:00:30]} Bd7 {[%emt 0:00:30]} 13. O-O {[%emt 0:00:30]} Be7 {[%emt 0:00:30]} 14. Qb1 {[%emt 0:00:30]} O-O-O {[%emt 0:12:30]} 15. Qb3 {[%emt 0:06:30]} Nb8 {[%emt 0:05:30]} 16. c4 {[%emt 0:11:30]} dxc4 {[%emt 0:00:30]} 17. dxc4 {[%emt 0:00:30]} Bc6 {[%emt 0:00:30]} 18. Bc3 {[%emt 0:00:30]} b6 {[%emt 0:20:30]} 19. Rfd1 {[%emt 0:30:30]} 1/2-1/2

[Event "Istanbul Open 2019"]
[Site "Istanbul"]
[Date "2019.08.31"]
[Round "8.5"]
[White "Ozsakallioglu, Okan"]
[Black "Eren, Ataberk"]
[Result "0-1"]
[ECO "D19"]
[WhiteElo "2324"]
[BlackElo "2254"]
[Annotator "NA"]
[PlyCount "72"]
[EventDate "2019.08.26"]
[EventType "swiss"]
[EventCountry "TUR"]
[SourceTitle "playchess.com"]
[Source "ChessBase"]
[SourceQuality "1"]
[TimeControl "5400+30"]

1. d4 {[%emt 0:00:30]} d5 {[%emt 0:00:30]} 2. Nf3 {[%emt 0:00:30]} Nf6 {[%emt 0:00:30]} 3. c4 {[%emt 0:02:30]} c6 {[%emt 0:00:00]} 4. Nc3 {[%emt 0:00:30]} dxc4 {[%emt 0:00:00]} 5. a4 {[%emt 0:00:30]} Bf5 {[%emt 0:00:30]} 6. e3 {[%emt 0:00:30]} e6 {[%emt 0:00:00]} 7. Bxc4 {[%emt 0:00:00]} Bb4 {[%emt 0:00:00]} 8. O-O {[%emt 0:00:00]} Nbd7 {[%emt 0:00:00]} 9. Qe2 {[%emt 0:00:30]} O-O {[%emt 0:00:00]} 10. e4 {[%emt 0:00:30]} Bg6 {[%emt 0:00:30]} 11. e5 {[%emt 0:00:30]} Nd5 {[%emt 0:00:30]} 12. Nxd5 {[%emt 0:00:30]} cxd5 {[%emt 0:00:30]} 13. Bd3 {[%emt 0:00:30]} Bxd3 {[%emt 0:00:30]} 14. Qxd3 {[%emt 0:00:30]} Be7 {[%emt 0:00:30]} 15. a5 {[%emt 0:00:30]} a6 {[%emt 0:00:30]} 16. Bd2 {[%emt 0:02:30]} Nb8 {[%emt 0:00:30]} 17. b4 {[%emt 0:06:30]} Qd7 {[%emt 0:00:30]} 18. b5 {[%emt 0:02:30]} Qxb5 {[%emt 0:03:30]} 19. Qxb5 {[%emt 0:00:30]} axb5 {[%emt 0:00:00]} 20. Rfb1 {[%emt 0:00:30]} b4 {[%emt 0:00:00]} 21. Bxb4 {[%emt 0:00:00]} Bxb4 {[%emt 0:02:30]} 22. Rxb4 {[%emt 0:00:00]} Nc6 {[%emt 0:00:00]} 23. Rxb7 {[%emt 0:00:00]} Rxa5 {[%emt 0:00:00]} 24. Rxa5 {[%emt 0:01:00]} Nxa5 {[%emt 0:00:00]} 25. Ra7 {[%emt 0:00:30]} Nc4 {[%emt 0:00:00]} 26. h4 {[%emt 0:00:00]} h6 {[%emt 0:03:30]} 27. g4 {[%emt 0:00:00]} Rb8 {[%emt 0:00:30]} 28. g5 {[%emt 0:00:30]} Nb2 {[%emt 0:06:30]} 29. h5 {[%emt 0:00:00]} Nd3 {[%emt 0:00:30]} 30. g6 {[%emt 0:01:00]} Rf8 {[%emt 0:14:30]} 31. Nh4 {[%emt 0:00:30]} Nf4 {[%emt 0:00:30]} 32. gxf7+ {[%emt 0:00:30]} Rxf7 {[%emt 0:00:30]} 33. Ra8+ {[%emt 0:00:30]} Kh7 {[%emt 0:00:30]} 34. Re8 {[%emt 0:00:30]} Nxh5 {[%emt 0:00:30]} 35. Rxe6 {[%emt 0:00:30]} Rf4 {[%emt 0:07:30]} 36. Ng2 {[%emt 0:00:30]} Rg4 {[%emt 0:05:30]} 0-1

[Event "Istanbul Open 2019"]
[Site "Istanbul"]
[Date "2019.08.31"]
[Round "8.9"]
[White "Tarhan, Adar"]
[Black "Ozbay, Ece"]
[Result "1-0"]
[ECO "B47"]
[WhiteElo "1949"]
[BlackElo "2125"]
[Annotator "RC"]
[PlyCount "85"]
[EventDate "2019.08.26"]
[EventType "swiss"]
[EventCountry "TUR"]
[SourceTitle "playchess.com"]
[Source "ChessBase"]
[SourceQuality "1"]
[TimeControl "5400+30"]

1. e4 c5 2. Nf3 e6 3. d4 cxd4 4. Nxd4 Nc6 5. Nc3 Qc7 6. g3 a6 7. Bg2 Nf6 8. O-O Nxd4 9. Qxd4 Bc5 10. Bf4 d6 11. Qd3 Ng4 12. Na4 Ne5 13. Qc3 b6 14. b4 Bd7 15. bxc5 Bxa4 16. Qd4 Qd7 17. cxd6 f6 18. Bxe5 fxe5 19. Qxe5 O-O 20. Qd4 Rac8 21. e5 Rxc2 22. Rac1 Rfc8 23. Rxc2 Rxc2 24. Qxb6 Bb5 25. Ra1 Qc8 26. Qe3 Rc3 27. Qe1 Qc5 28. Rd1 Bd7 29. Be4 g6 30. Bg2 Rc2 31. a4 Qc4 32. Qe3 Qxa4 33. Rb1 Qc4 34. Bf1 Qa4 35. Qa7 Rc8 36. Rb7 Rd8 37. Qxa6 Qxa6 38. Bxa6 Kf8 39. Bb5 Bxb5 40. Rxb5 Rd7 41. Rb8+ Kg7 42. Rc8 Kf7 43. Rc7 1-0